Cogmind - Beta 9.6 @@@ ROGUE MODE // 2020.06.12 @ 05:29:55 Player: Rod99 Result: Destroyed by G-47 Trooper with Particle Gun Performance ------------- Evolutions (2) 1000 Regions Visited (4) 800 Robots Destroyed (13) 65 Value Destroyed (343) 343 Prototype IDs (1) 20 Alien Tech Used (0) 0 Bonus (200) 200 TOTAL SCORE: 2428 Bonus ------- Pacifist 200 Cogmind --------- Core Integrity 0/550 Matter 258/300 Energy 85/100 System Corruption 0% Temperature Cool (9) Movement Core (50) Location -8/Materials Parts ------- > --- POWER (2) -------- (None) > --- PROPULSION (2) --- (None) > --- UTILITY (5) ------ Improved Signal Interpreter > --- WEAPON (2) ------- (None) > --- INVENTORY (4) ---- (None) Peak State ------------ > --- POWER ------------ Light Ion Engine Deuterium Engine > --- PROPULSION ------- Wheel Compact Wheel > --- UTILITY ---------- Large Storage Unit Large Matter Pod Structural Scanner Advanced Sensor Array Improved Signal Interpreter > --- WEAPON ----------- Minigun High-powered Shotgun > --- INVENTORY -------- Deuterium Engine Deuterium Engine Improved Flight Unit Rocket Launcher Mining Laser Mining Laser [Rating: 21] Favorites ----------- Power Light Ion Engine Engine Light Ion Engine Propulsion Wheel Leg Aluminum Leg Wheel Wheel Flight Unit Improved Flight Unit Utility Large Storage Unit Device Structural Scanner Storage Large Storage Unit Processor Improved Signal Interpreter Weapon Mining Laser Energy Gun Medium Laser Ballistic Gun Light Assault Rifle Launcher Grenade Launcher Special Weapon Mining Laser Build | -11 -10 -9 -9 -8 ------- Run | Scr Mat Mat Min Mat Slots Evolved 4 | . . 2 . 2 Power 1 | . . . . 1 Propulsion . | . . . . . Utility 3 | . . 2 . 1 Weapon . | . . . . . Parts Attached 35 | 6 1 11 3 14 Power 5 | 1 . . . 4 Engine 5 | 1 . . . 4 Core . | . . . . . Reactor . | . . . . . Propulsion 10 | 2 . 5 . 3 Treads . | . . . . . Leg 1 | . . . . 1 Wheel 6 | 2 . 3 . 1 Hover . | . . . . . Flight 3 | . . 2 . 1 Utility 6 | 1 1 . 3 1 Device 2 | . . . 1 1 Storage 3 | 1 1 . 1 . Processor 1 | . . . 1 . Hackware . | . . . . . Protection . | . . . . . Artifact . | . . . . . Weapon 14 | 2 . 6 . 6 Energy Gun 4 | 1 . 3 . . Energy Cannon . | . . . . . Ballistic Gun 4 | 1 . . . 3 Ballistic Cannon . | . . . . . Launcher 2 | . . 1 . 1 Special Weapon 4 | . . 2 . 2 Impact Weapon . | . . . . . Slashing Weapon . | . . . . . Piercing Weapon . | . . . . . Special Melee Weapon . | . . . . . Unidentified Prototypes 1 | . . 1 . . Parts Lost 26 | . 4 4 . 18 Power 5 | . 1 . . 4 Propulsion 6 | . 1 1 . 4 Utility 3 | . . . . 3 Weapon 12 | . 2 3 . 7 Highest Loss Streak 18 | . 4 2 . 18 Average Slot Usage (%) 67 | . 74 45 81 74 Engine 3 | . 11 . . 8 Wheel 17 | . 25 13 22 12 Device 5 | . . . 8 11 Storage 15 | . 14 11 19 17 Processor 4 | . . . 8 9 Energy Gun 5 | . 11 12 . . Ballistic Gun 2 | . 11 . . 3 Launcher 1 | . . 5 . . Special Weapon 10 | . . 2 22 12 Naked Turns . | . . . . . Heaviest Build 39 | 10 22 21 22 39 Greatest Support 26 | 26 26 20 10 26 Greatest Overweight (x) 9 | . 1 6 2 9 Average Overweight (x) . | . . 1 1 . Largest Inventory Capacity 12 | 6 12 10 10 10 Average Capacity 9 | 4 7 10 10 9 Most Carried 9 | 4 2 3 6 9 Average Carried 2 | . 1 . 3 5 Final Capacity 10 | 6 10 10 10 4 Final Carried 5 | 1 2 3 5 . Class Distribution -------------------- 92% | Mutant 7% | Skirmisher Dominant Class ---------------- Mutant | -10/Materials Mutant | -9/Materials Mutant | -9/Mines Skirmisher | -8/Materials Resources | -11 -10 -9 -9 -8 ----------- Run | Scr Mat Mat Min Mat Matter Collected 455 | 175 . 87 193 . Remotely . | . . . . . Salvage Created 230 | . . 127 5 98 Parts 23 | . . 8 3 12 Haulers Intercepted 1 | . . 1 . . Recyclers Shooed . | . . . . . Parts Field Recycled . | . . . . . Retrieved Matter . | . . . . . Parts Self-Destructed . | . . . . . Prevented . | . . . . . Kills | -11 -10 -9 -9 -8 ------- Run | Scr Mat Mat Min Mat Combat Hostiles Destroyed 7 | . . 4 . 3 Guns 1 | . . . . 1 Cannons 1 | . . 1 . . AOE 5 | . . 3 . 2 Classes Destroyed 6 | . . 4 . 2 Builder 4 | . . 1 1 2 Hauler 1 | . . 1 . . Watcher 1 | . . . . 1 Grunt 5 | . . 3 . 2 Sentry 1 | . . 1 . . Hunter 1 | . . . . 1 Best Kill Streak 6 | . . 4 1 6 Combat Bots Only 3 | . . 3 . 3 Max Kills in Single Turn 3 | . . 2 1 3 Gunslinging . | . . . . . Exploded 2 | . . 2 . 2 Melee . | . . . . . Uniques/NPCs Destroyed . | . . . . . Combat | -11 -10 -9 -9 -8 -------- Run | Scr Mat Mat Min Mat Damage Taken 2139 | . 262 289 . 1588 Core 694 | . 33 105 . 556 Absorbed by Shields . | . . . . . Core Remaining (%) 86 | 100 86 . 73 . Volleys Fired 18 | . . 8 2 8 Largest 2 | . . 2 2 2 Hottest 200 | . . 200 200 200 Shots Fired 31 | . . 12 4 15 Gun 12 | . . 5 . 7 Cannon . | . . . . . Launcher 9 | . . 5 . 4 Special 10 | . . 2 4 4 Kinetic 7 | . . . . 7 Thermal 15 | . . 7 4 4 Explosive 9 | . . 5 . 4 Electromagnetic . | . . . . . Robot Hit Streak 4 | . . 3 3 4 Robot Miss Streak 4 | . . 4 1 4 Penetration Max . | . . . . . Secondary Targets . | . . . . . Shots Hit Robots 14 | . . 5 2 7 Core Hits 30 | . 2 13 1 14 Critical Hits . | . . . . . Critical Kills . | . . . . . Critical Parts Destroyed . | . . . . . Melee Attacks . | . . . . . Impact . | . . . . . Slashing . | . . . . . Piercing . | . . . . . Sneak Attacks . | . . . . . Combat Hostiles . | . . . . . Follow-up Attacks . | . . . . . Damage Inflicted 1184 | 1 11 363 48 761 Guns 119 | . . 12 . 107 Cannons . | . . . . . Explosions 898 | . . 268 . 630 Melee . | . . . . . Ramming 47 | 1 11 35 . . Kinetic 107 | . . . . 107 Thermal 132 | . . 60 48 24 Explosive 898 | . . 268 . 630 Electromagnetic . | . . . . . Impact . | . . . . . Slashing . | . . . . . Piercing . | . . . . . Highest Corruption 2 | . . 2 2 . Average Corruption 2 | . . 2 2 . Corruption Purged . | . . . . . Effects 4 | . . 2 2 . Message Errors 3 | . . 1 2 . Energy Discharges 1 | . . 1 . . Overload Shots . | . . . . . Overflow Damage 17 | . . . . 17 Projectiles . | . . . . . Explosions 17 | . . . . 17 Melee . | . . . . . Knockbacks 2 | . . 2 . . Impact 2 | . . 2 . . Kinetic . | . . . . . Secondary . | . . . . . Self-Inflicted Damage 99 | . 4 59 . 36 Shots 4 | . . 2 . 2 Rammed 11 | 1 5 5 . . Targets Rammed 11 | 1 5 5 . . Kicked . | . . . . . Crushed . | . . . . . Highest Temperature 147 | . . 16 . 147 Average Temperature 40 | . . 12 . 44 Received Heat Transfer 777 | . 87 96 . 594 Siege Activations . | . . . . . Robots Corrupted . | . . . . . Combat Hostiles . | . . . . . Parts Fried . | . . . . . Impact Corruptions . | . . . . . Robots Melted . | . . . . . Combat Hostiles . | . . . . . Parts Melted . | . . . . . Heat Transferred 287 | . . 137 100 50 Parts Sabotaged . | . . . . . Parts Stolen . | . . . . . Parts Stripped . | . . . . . Power Chain Reactions . | . . . . . Missiles Intercepted . | . . . . . Alert | -11 -10 -9 -9 -8 ------- Run | Scr Mat Mat Min Mat Peak Influence 118 | . 30 112 48 118 Average Influence 39 | . 11 53 46 43 Maximum Alert Level . | . . . . . Low Security (%) 100 | 100 100 100 100 100 Level 1 . | . . . . . Level 2 . | . . . . . Level 3 . | . . . . . Level 4 . | . . . . . Level 5 . | . . . . . High Security . | . . . . . Max Security . | . . . . . Squads Dispatched 7 | . 2 2 . 3 Investigation 2 | . . 1 . 1 Extermination . | . . . . . Reinforcement 4 | . 2 1 . 1 Assault . | . . . . . Garrison 1 | . . . . 1 Intercept . | . . . . . Construction Impeded 1 | . . . . 1 Haulers Reinforced . | . . . . . Stealth | -11 -10 -9 -9 -8 --------- Run | Scr Mat Mat Min Mat Distress Signals 3 | . . 1 . 2 Communications Jammed . | . . . . . Distress Signals . | . . . . . Times Spotted 32 | . 9 9 . 14 Peak Tracking Total 9 | . 5 5 . 9 Tactical Retreats 2 | . 1 . . 1 Traps | -11 -10 -9 -9 -8 ------- Run | Scr Mat Mat Min Mat Traps Triggered . | . . . . . Indirectly . | . . . . . Trap Hack Attempts . | . . . . . Triggered . | . . . . . Disarmed . | . . . . . Reprogrammed . | . . . . . Reused . | . . . . . Traps Extracted . | . . . . . Installed . | . . . . . Triggered . | . . . . . Machines | -11 -10 -9 -9 -8 ---------- Run | Scr Mat Mat Min Mat Machines Disabled . | . . . . . Max in Single Turn . | . . . . . Machines Sabotaged . | . . . . . Garrisons Compromised . | . . . . . Overloaded Fab Kills . | . . . . . Fab Network Shutdowns . | . . . . . Hacking | -11 -10 -9 -9 -8 --------- Run | Scr Mat Mat Min Mat Machines Accessed 2 | . . 1 . 1 Terminals 2 | . . 1 . 1 Fabricators . | . . . . . Repair Stations . | . . . . . Recycling Units . | . . . . . Scanalyzers . | . . . . . Garrison Access . | . . . . . Total Hacks 7 | . . 3 . 4 Successful 3 | . . . . 3 Failed 4 | . . 3 . 1 Catastrophic 2 | . . 2 . . Database Lockouts . | . . . . . Manual 1 | . . . . 1 Terminals 7 | . . 3 . 4 Fabricators . | . . . . . Repair Stations . | . . . . . Recycling Units . | . . . . . Scanalyzers . | . . . . . Garrison Access . | . . . . . Terminal Hacks 3 | . . . . 3 Record 1 | . . . . 1 Level Access Points 1 | . . . . 1 Emergency Access Points 1 | . . . . 1 Fabricator Hacks . | . . . . . Repair Station Hacks . | . . . . . Recycling Unit Hacks . | . . . . . Scanalyzer . | . . . . . Garrison Access Hacks . | . . . . . Unauthorized Hacks . | . . . . . Terminals . | . . . . . Fabricators . | . . . . . Repair Stations . | . . . . . Recycling Units . | . . . . . Scanalyzers . | . . . . . Garrison Access . | . . . . . Data Cores Recovered . | . . . . . Used . | . . . . . Hacking Detections 2 | . . 1 . 1 Full Trace Events 2 | . . 1 . 1 Feedback Events . | . . . . . Feedback Blocked . | . . . . . Robot Schematics Acquired . | . . . . . Robots Built . | . . . . . Matter . | . . . . . Time . | . . . . . Total Robot Build Rating . | . . . . . Part Schematics Acquired . | . . . . . Parts Built . | . . . . . Matter . | . . . . . Time . | . . . . . Total Part Build Rating . | . . . . . Parts Repaired . | . . . . . Time . | . . . . . Parts Recycled . | . . . . . Recycled Matter . | . . . . . Retrieved Matter . | . . . . . Retrieved Components . | . . . . . Parts Scanalyzed . | . . . . . Part Schematics Acquired . | . . . . . Parts Damaged . | . . . . . Bothacking | -11 -10 -9 -9 -8 ------------ Run | Scr Mat Mat Min Mat Used RIF Installer . | . . . . . Robots Hacked . | . . . . . Non-combat . | . . . . . Combat . | . . . . . Robot Hacks Applied . | . . . . . Relay Couplers Released . | . . . . . Robots Rewired . | . . . . . Allies Hacked . | . . . . . Hacks Repelled . | . . . . . Allies | -11 -10 -9 -9 -8 -------- Run | Scr Mat Mat Min Mat Total Allies . | . . . . . Largest Group . | . . . . . Highest-Rated Group . | . . . . . Highest-Rated Ally . | . . . . . Total Orders . | . . . . . Ally Attacks . | . . . . . Total Damage . | . . . . . Kills . | . . . . . Allies Corrupted . | . . . . . Allies Melted . | . . . . . Intel | -11 -10 -9 -9 -8 ------- Run | Scr Mat Mat Min Mat Robot Analysis Total . | . . . . . Derelict Logs Recovered 1 | . . . 1 . Drone Launches . | . . . . . Drone Recoveries . | . . . . . Exploration | -11 -10 -9 -9 -8 ------------- Run | Scr Mat Mat Min Mat Turns Passed 727 | 39 111 209 217 151 Spaces Moved 566 | 32 111 136 191 96 Core 19 | 9 . 7 . 3 Treads . | . . . . . Legs 3 | . . . . 3 Wheels 543 | 23 111 129 191 89 Hover . | . . . . . Flight 1 | . . . . 1 Fastest Speed 35 | 50 90 80 90 35 Average Speed 98 | 78 92 108 97 99 Slowest Speed 500 | 90 110 350 100 500 Overloaded Moves . | . . . . . Propulsion Burnouts . | . . . . . Robots Hopped . | . . . . . Cave-ins Triggered . | . . . . . Exploration Rate (%) 18 | 3 25 11 41 12 Regions Visited 4 Branch Regions 1 Pre-discovered Areas 1 | . . . 1 . Known Exits Taken 1 | . . . 1 . Unknown Exits Taken 3 | 1 1 1 . . Scrap Searched 1 | . . . 1 . Spaces Dug 1 | . . . . 1 Terrain Destroyed 66 | . . 22 . 44 Melee . | . . . . . Projectile 1 | . . . . 1 AOE 65 | . . 22 . 43 Actions | -11 -10 -9 -9 -8 --------- Run | Scr Mat Mat Min Mat Total 683 | 45 120 179 209 130 Wait 20 | . 1 10 9 . Move 562 | 31 110 135 190 96 Hop . | . . . . . Pick Up 32 | 7 2 9 5 9 Fast Attach . | . . . . . Attach 31 | 6 1 7 3 14 Detach . | . . . . . Swap 4 | . . 4 . . Drop 5 | . 1 1 . 3 Fire 18 | . . 8 2 8 Melee . | . . . . . Ram 11 | 1 5 5 . . Kick . | . . . . . Crush . | . . . . . Escape Stasis . | . . . . . Rewire . | . . . . . Trap . | . . . . . Miscellaneous . | . . . . . Route ------- -11/Scrapyard -10/Materials -9/Materials -9/Mines -8/Materials (discovered 4 exits: *Fac x3 / Sto) History --------- Turn | Location | Event 23 | -11/Scrapyard | Discovered new exit (range 15) 40 | -11/Scrapyard | Entered Materials 75 | -10/Materials | Discovered new exit (range 16) 151 | -10/Materials | Entered another Materials area 151 | -9/Materials | Evolved 2 slots: Utility x2 167 | -9/Materials | Lost 4 parts (1p1n2w) 311 | -9/Materials | Build established: Mutant 321 | -9/Materials | Discovered new exit (range 16) 360 | -9/Materials | Entered Mines 361 | -9/Mines | Learned location of Storage (-8) 374 | -9/Mines | Learned 2 Materials zone layouts 378 | -9/Mines | A weapon hastily lodged in a ceiling crevice suddenly fell to the ground 465 | -9/Mines | Discovered new exit (range 8) 574 | -9/Mines | Identified exit to Materials 577 | -9/Mines | Entered Materials 577 | -8/Materials | Evolved 2 slots: Power x1, Utility x1 578 | -8/Materials | Identified exit to Storage 610 | -8/Materials | Identified exit to Factory 684 | -8/Materials | Garrison activated, responded to threat 712 | -8/Materials | Core integrity fell below 50% 722 | -8/Materials | Core integrity fell below 20% 728 | -8/Materials | Destroyed by G-47 Trooper with Particle Gun Last Messages --------------- 00712_ The unstable cave ceiling collapses. 00712_ R-06 Scavenger collects Lgt. Nuclear Core. 00713_ Deuterium Engine destroyed. 00714_ Lrg. Matter Pod destroyed. 00714_ Acquired Aluminum Leg. 00714_ Penetrated by Slug. 00714_ G-47 Trooper suffers critical hit. 00716_ R-06 Scavenger collects Particle Gun. 00717_ G-47 Trooper destroyed. 00720_ R-06 Scavenger collects Imp. Heat Sink. 00720_ Penetrated by Slug. 00720_ R-06 Scavenger destroyed. 00721_ Acquired Hpw. Shotgun. 00723_ R-06 Scavenger collects Com. Wheel. 00723_ Hpw. Shotgun destroyed. 00723_ Aluminum Leg destroyed. 00725_ Dropped Lrg. Storage Unit. 00726_ Penetrated by Slug. 00726_ Imp. Flight Unit destroyed. 00727_ R-06 Scavenger collects Imp. Heat Sink. Map ----- +----------------------------------------------------+ | ??????????????????????????????????????+ #??????? | | ??????????????????????????????????????# #??????? | | ??????????????????????????????????????# #######? | | ??????????????????????????????????????# # ? | | ??????????????????????????????????????# # """"" | | ?????????????????#########+############ # """"" | | ????????????????## # """"" | | ????????????????+ + | | ?????????????????# [[[ # """"" | | ?????????????????# [[[ ###+####### # """"" | | ????????????###### [[ # #??# # """"" | | ??????????? #??# # | | ??????????? #??# #####+## | | ??????????? # * #??# | | ???????????????######### % * #??# | | ??????????????????????# * #??# | | ??????????????????????# r[!# #####??############ | | ??????????????????????# g%* #?????????????????? | | ??????????????????????# %%* #?????????????????? | | ??????????????????????# # % #?????????????????? | | ??????????????????????# #?????????????????? | | ??????????????????????# = ##?????????????????? | | ??????????????????????# !* #??????????????????? | | ??????????????????????### ###??????????????????? | | ????????????????????????# #????????????????????? | | ????????????????????????#@ #????????????????????? | | ????????????????????????# #????????????????????? | | ????????????????????????# g#????????????????????? | | ????????????????????????# #????????????????????? | | ????????????????????????#hg #????????????????????? | | ????????????????????????# #????????????????????? | | ????????????????????????# w#????????????????????? | | ????????????????????????# #????????????????????? | | ????????????????????????# #????????????????????? | | ????????????????????????# #????????????????????? | | ????????????????????????? #????????????????????? | | ????????????????????????? #????????????????????? | | ????????????????????????? +????????????????????? | | ????????????????????????? #????????????????????? | | ????????????????????????? < #????????????????????? | | ????????????????????????? ?????????????????????? | | ?????????????????????????????????????????????????? | | ?????????????????????????????????????????????????? | | ?????????????????????????????????????????????????? | | ?????????????????????????????????????????????????? | | ?????????????????????????????????????????????????? | | ?????????????????????????????????????????????????? | | ?????????????????????????????????????????????????? | | ?????????????????????????????????????????????????? | | ?????????????????????????????????????????????????? | +----------------------------------------------------+ Best States ------------- Heat Dissipation 31 Energy Generation 23 Energy Capacity 450 Matter Stores 380 Matter Capacity 450 Sight Range 16 Robot Scan Range 16 Terrain Scan Density 10 Evasion (%) 50 Item Schematics ----------------- None Robot Schematics ------------------ None Fabricated ------------ Nothing Alien Tech Used ----------------- None Achievements -------------- I Spy Challenges ------------ None Game ------ Seed InertialCloakingSteel Manual? 0 Play Time 00:14:55 Cumulative 17.2 hours Start 2020.06.12 @ 05:12:43 End 2020.06.12 @ 05:29:55 Sessions 1 Manual Loads 0 Difficulty Rogue Special Mode None Game No. 26 Rogue 26 Adventurer 0 Explorer 0 Win Type - Total 0 Types 0/0/0/0/0/0/0 Lore% 19 Gallery% 20 Achievement% 16 Wizard Run 0 Options --------- ASCII 0 Keyboard 0 Movement Numpad Keybinds 0 Fullscreen 1 Font 12/Smallcaps Map View 83x54 Tactical HUD 1 Map Filters NONE Filters NONE Steam 1 RUN: 25863eda-5807-44da-9101-16ccb1c2bf00